bitfinex/quotes_SOLUSD_20240622
["timestamp","ask_amount","ask_price","bid_price","bid_amount"]
[1719051083617,6.51,134.57,134.53,7.433]
[1719051086701,6.51,134.57,134.54,7.4326]
[1719051087016,6.51,134.58,134.54,7.4326]
[1719051089429,13.9405,134.58,134.53,7.4332]
[1719051090521,6.51,134.58,134.53,7.4332]
[1719051091007,6.51,134.56,134.5,15.4322]
[1719051091212,6.51,134.56,134.51,7.4339]
[1719051091412,6.51,134.56,134.5,21.9422]
[1719051091614,13.9412,134.57,134.51,6.51]
[1719051091799,13.9412,134.57,134.5,15.4322]
[1719051092002,20.0,134.56,134.5,15.4322]
[1719051092224,26.51,134.56,134.5,21.9422]
[1719051092621,6.51,134.55,134.5,6.51]
[1719051093813,6.51,134.55,134.51,7.4342]
[1719051094622,6.51,134.53,134.49,7.435]
[1719051094930,6.51,134.53,134.5,7.4349]
[1719051095516,6.51,134.54,134.5,7.4349]
[1719051095717,20.0,134.53,134.5,7.4349]
[1719051098525,20.0,134.53,134.49,7.4352]
[1719051104336,20.0,134.53,134.5,7.4348]
[1719051104535,20.0,134.54,134.51,13.9443]
[1719051104735,20.0,134.55,134.51,13.9443]
[1719051104936,20.0,134.55,134.51,6.51]
[1719051105522,20.0,134.55,134.47,21.9634]
[1719051105728,20.0,134.56,134.52,6.51]
[1719051106133,20.0,134.56,134.53,13.9429]
[1719051106337,20.0,134.57,134.54,7.4325]
[1719051106522,20.0,134.58,134.54,13.9425]
[1719051107031,20.0,134.58,134.55,6.51]
[1719051107236,13.9826,134.6,134.55,6.51]
[1719051107728,7.4297,134.6,134.55,13.9421]
[1719051108317,7.4297,134.6,134.55,6.51]
[1719051109341,20.0,134.59,134.55,6.51]
[1719051110715,20.0,134.59,134.54,13.9425]
[1719051110925,26.51,134.59,134.51,15.4534]
[1719051111128,7.4311,134.57,134.53,6.51]
[1719051111324,7.4311,134.57,134.51,15.4534]
[1719051111325,7.4317,134.56,134.51,22.8875]
[1719051111524,7.4317,134.56,134.52,6.51]
[1719051111726,7.4317,134.56,134.51,29.3975]
[1719051112236,13.9412,134.57,134.51,29.3975]
[1719051112423,13.9412,134.57,134.52,7.4338]
[1719051113228,13.9412,134.57,134.52,13.9438]
[1719051114343,13.9412,134.57,134.52,7.4338]
[1719051114545,6.51,134.57,134.52,7.4338]
[1719051114845,6.51,134.57,134.53,7.4331]
[1719051115747,13.9411,134.57,134.52,7.4337]
[1719051118343,6.51,134.57,134.53,7.4332]
[1719051118553,6.51,134.56,134.53,7.4332]
[1719051119028,7.4306,134.58,134.53,7.4332]
[1719051119228,6.51,134.56,134.53,7.4332]
[1719051120454,6.51,134.56,134.52,7.4336]
[1719051120763,49.9459,134.59,134.54,7.4326]
[1719051120936,6.51,134.57,134.54,7.4326]
[1719051121456,6.51,134.58,134.54,7.4326]
[1719051121667,20.0,134.57,134.54,7.4326]
[1719051122967,20.0,134.57,134.53,7.4331]
[1719051123671,6.51,134.56,134.51,15.4534]
[1719051123963,13.942,134.56,134.51,22.8873]
[1719051124534,6.51,134.56,134.51,22.8873]
[1719051124739,6.51,134.56,134.51,7.4339]
[1719051125566,13.9417,134.56,134.51,7.4339]
[1719051126766,13.9417,134.56,134.51,13.9439]
[1719051127151,6.51,134.56,134.52,7.4336]
[1719051127550,33.9413,134.57,134.52,7.4336]
[1719051128164,20.0,134.57,134.48,15.4386]
[1719051128473,20.0,134.58,134.55,7.4318]
[1719051128963,7.429,134.61,134.56,7.4313]
[1719051129165,13.939,134.61,134.56,7.4313]
[1719051129655,13.939,134.61,134.55,13.9419]
[1719051129858,7.429,134.61,134.56,7.4315]
[1719051130054,13.939,134.61,134.56,7.4315]
[1719051130360,29.9443,134.62,134.57,7.4309]
[1719051130574,20.0,134.61,134.57,7.4309]
[1719051130747,20.0,134.61,134.57,13.9409]
[1719051132574,20.0,134.61,134.56,13.9414]
[1719051134450,20.0,134.61,134.53,18.5831]
[1719051134451,6.51,134.6,134.54,6.51]
[1719051134651,7.43,134.59,134.54,13.9423]
[1719051134966,6.51,134.6,134.54,13.9423]
[1719051134967,13.9396,134.6,134.54,13.9423]
[1719051135751,7.4299,134.59,134.54,13.9423]
[1719051136756,13.9396,134.6,134.54,13.9423]
[1719051136974,20.0,134.59,134.55,7.4321]
[1719051138746,20.0,134.59,134.54,6.51]
[1719051138747,20.0,134.59,134.54,13.9425]
[1719051140071,33.9401,134.59,134.54,13.9425]
[1719051141076,20.0,134.59,134.55,7.432]
[1719051142275,20.0,134.59,134.55,13.942]
[1719051142467,20.0,134.59,134.55,6.51]
[1719051142667,26.51,134.61,134.56,6.51]
[1719051143273,6.51,134.59,134.52,21.6961]
[1719051143465,7.4309,134.58,134.52,21.6961]
[1719051143667,7.4309,134.58,134.53,6.51]
[1719051144374,7.4301,134.59,134.54,7.4327]
[1719051144595,6.51,134.59,134.55,7.4321]
[1719051145070,13.9401,134.59,134.54,7.4327]
[1719051145460,13.9401,134.59,134.54,13.9427]
[1719051145660,13.9401,134.59,134.54,7.4327]
[1719051146854,6.51,134.59,134.55,7.432]
[1719051147276,13.9395,134.6,134.55,7.432]
[1719051147480,20.0,134.59,134.55,7.432]
[1719051148760,20.0,134.6,134.55,6.51]
[1719051149097,20.0,134.6,134.57,7.431]
[1719051149281,20.0,134.6,134.56,6.51]
[1719051149591,20.0,134.61,134.57,7.4306]
[1719051153783,26.51,134.61,134.57,7.4306]
[1719051154680,33.939,134.61,134.56,13.9416]
[1719051154879,13.9402,134.59,134.54,7.4324]
[1719051155080,13.9402,134.59,134.54,13.9424]
[1719051156581,6.51,134.59,134.55,7.4321]
[1719051157375,13.9396,134.6,134.55,7.4321]
[1719051157772,20.0,134.61,134.55,6.51]
[1719051157970,20.0,134.61,134.56,6.51]
[1719051158291,20.0,134.61,134.57,7.4309]
[1719051159367,27.4289,134.61,134.56,13.9414]
[1719051160088,20.0,134.61,134.57,7.4309]
[1719051162174,27.4288,134.61,134.56,13.9414]
[1719051162780,20.0,134.61,134.57,7.4309]
[1719051164294,27.4288,134.61,134.56,13.9413]
[1719051164671,20.0,134.61,134.57,7.431]
[1719051165280,27.4289,134.61,134.56,13.9414]
[1719051166285,33.9389,134.61,134.56,7.4314]
[1719051166587,27.4289,134.61,134.56,13.9414]
[1719051166794,33.9389,134.61,134.56,13.9414]
[1719051168194,7.4294,134.6,134.56,6.51]
[1719051168383,7.4305,134.58,134.54,6.51]
[1719051168891,7.4305,134.58,134.53,13.9429]
[1719051169272,13.9401,134.59,134.54,7.4327]
[1719051171773,13.9401,134.59,134.53,6.51]
[1719051171774,6.51,134.59,134.55,7.432]
[1719051172591,13.9395,134.6,134.55,7.432]
[1719051173095,6.51,134.6,134.56,7.4316]
[1719051174595,20.0,134.61,134.56,6.51]
[1719051174777,20.0,134.61,134.58,7.4303]
[1719051175697,20.0,134.61,134.57,7.4308]
[1719051176010,33.939,134.61,134.56,7.4311]
[1719051176178,7.4296,134.6,134.55,13.9421]
[1719051176494,6.51,134.6,134.52,40.2795]
[1719051176691,7.4301,134.59,134.54,13.9423]
[1719051176885,13.9396,134.6,134.55,7.4321]
[1719051177078,20.0,134.61,134.56,7.4315]
[1719051177079,33.939,134.61,134.56,7.4315]
[1719051177880,27.429,134.61,134.56,7.4315]
[1719051178298,33.939,134.61,134.56,13.9415]
[1719051178599,27.429,134.61,134.56,13.9415]
[1719051178998,20.0,134.61,134.57,13.9409]
[1719051182900,27.4289,134.61,134.57,6.51]
[1719051184610,27.4289,134.61,134.56,13.9414]
[1719051186808,27.4289,134.61,134.57,6.51]
[1719051187011,27.4289,134.61,134.57,13.941]
[1719051187200,20.0,134.61,134.57,13.941]
[1719051187937,27.4291,134.61,134.55,7.4316]
[1719051188228,27.4291,134.61,134.57,6.51]
[1719051190904,6.6117,134.65,134.58,6.51]
[1719051191110,13.9374,134.64,134.59,6.51]
[1719051191299,13.9374,134.64,134.59,15.05235181]
[1719051191501,13.9374,134.64,134.59,22.48225181]
[1719051191704,7.4274,134.64,134.6,6.51]
[1719051192106,7.4274,134.64,134.59,22.48225181]
[1719051192309,16.4548,134.66,134.58,0.17]
[1719051192492,6.51,134.67,134.62,6.51]
[1719051192698,13.936,134.67,134.62,6.51]
[1719051192998,13.936,134.67,134.62,13.9383]
[1719051195817,7.4262,134.66,134.62,6.51]
[1719051196608,7.4257,134.67,134.62,13.9382]
[1719051196815,13.9357,134.67,134.62,13.9382]
[1719051199118,13.9357,134.67,134.62,7.4282]
[1719051199419,7.4261,134.66,134.61,13.9386]
[1719051200200,7.4261,134.66,134.61,7.4286]
[1719051200498,7.4261,134.66,134.61,13.9386]
[1719051201008,13.9357,134.67,134.61,13.9386]
[1719051201743,13.9357,134.67,134.62,7.4281]
[1719051202219,13.8744,134.68,134.63,7.4275]
[1719051202432,26.51,134.67,134.63,7.4275]
[1719051202919,26.51,134.67,134.62,7.428]
[1719051203119,26.51,134.67,134.62,13.938]
[1719051204124,26.51,134.67,134.63,7.4277]
[1719051205936,20.0,134.67,134.63,7.4277]
[1719051206530,26.51,134.67,134.63,7.4277]
[1719051206739,33.9356,134.67,134.62,7.4282]
[1719051207025,6.51,134.66,134.62,7.4282]
[1719051211904,20.0,134.67,134.58,0.34]
[1719051212109,6.51,134.64,134.6,7.4289]
[1719051213207,6.51,134.64,134.61,7.4287]
[1719051213409,6.51,134.64,134.6,7.4291]
[1719051213830,6.51,134.64,134.61,7.4288]
[1719051214624,6.51,134.65,134.61,7.4288]
[1719051215304,27.4257,134.67,134.62,23.9858]
[1719051215505,20.0,134.67,134.63,7.4273]
[1719051216008,20.0,134.67,134.64,7.4271]
[1719051216332,20.0,134.67,134.63,7.4275]
[1719051217822,20.0,134.67,134.64,7.4271]
[1719051218337,26.51,134.68,134.64,7.4271]
[1719051218527,20.0,134.68,134.64,7.4271]
[1719051218728,26.51,134.68,134.63,13.9375]
[1719051218931,33.9351,134.68,134.63,7.4275]
[1719051221438,26.51,134.68,134.64,7.4271]
[1719051222440,26.51,134.68,134.63,7.4275]
[1719051224747,33.935,134.68,134.63,7.4275]
[1719051225119,13.9356,134.67,134.62,23.9859]
[1719051225338,13.9356,134.67,134.62,30.4959]
[1719051227529,6.51,134.67,134.62,30.4959]
[1719051228753,6.51,134.67,134.63,7.4276]
[1719051233039,6.51,134.66,134.6,18.5723]
[1719051233234,6.51,134.66,134.6,25.0823]
[1719051233539,6.51,134.66,134.62,7.428]
[1719051233854,6.51,134.66,134.63,7.4275]
[1719051236961,6.51,134.66,134.62,7.428]
[1719051241068,6.51,134.66,134.63,7.4277]
[1719051241861,6.51,134.66,134.62,7.428]
[1719051242766,48.5823,134.68,134.62,6.51]
[1719051242947,48.5823,134.68,134.64,7.427]
[1719051243643,34.51421072,134.68,134.64,7.427]
[1719051243848,28.5823,134.68,134.64,7.427]
[1719051244348,36.0073,134.68,134.63,7.4275]
[1719051244557,29.4973,134.68,134.63,7.4275]
[1719051244750,36.0073,134.68,134.63,7.4275]
[1719051245869,20.0,134.67,134.63,7.4275]
[1719051246970,26.51,134.67,134.63,7.4275]
[1719051249380,20.0,134.67,134.62,6.51]
[1719051249559,20.0,134.67,134.65,7.4264]
[1719051249761,22.0723,134.68,134.65,7.4264]
[1719051250683,15.8795,134.68,134.65,7.4264]
[1719051251155,22.3895,134.68,134.65,7.4264]
[1719051254083,6.51,134.68,134.65,7.4264]
[1719051254463,6.51,134.68,134.64,7.427]
[1719051258865,7.4244,134.69,134.64,7.427]
[1719051259075,20.0,134.68,134.64,7.427]
[1719051262790,13.9357,134.67,134.62,7.4279]
[1719051263362,6.51,134.67,134.62,7.4279]
[1719051263963,6.51,134.67,134.63,7.4276]
[1719051265386,6.51,134.67,134.64,7.4271]
[1719051267582,26.51,134.68,134.64,7.4271]
[1719051267775,6.51,134.67,134.64,7.4271]
[1719051269689,26.51,134.68,134.64,7.4271]
[1719051269895,26.51,134.68,134.65,7.4266]
[1719051271776,20.0,134.68,134.66,7.4261]
[1719051273084,20.0,134.68,134.65,7.4265]
[1719051277984,20.0,134.68,134.64,7.427]
[1719051281684,26.51,134.68,134.64,7.427]
[1719051282402,33.935,134.68,134.63,7.4275]
[1719051282784,20.0,134.68,134.64,7.427]
[1719051282991,26.51,134.68,134.64,7.427]
[1719051283780,20.0,134.68,134.64,7.427]
[1719051285997,20.0,134.68,134.64,6.51]
[1719051286206,26.51,134.7,134.64,6.51]
[1719051287800,33.9339,134.7,134.65,7.4265]
[1719051289001,27.4239,134.7,134.65,7.4265]
[1719051289203,33.9339,134.7,134.65,7.4265]
[1719051289391,27.4239,134.7,134.65,7.4265]
[1719051289581,33.9339,134.7,134.65,7.4265]
[1719051291888,27.4239,134.7,134.65,7.4265]
[1719051292098,33.9339,134.7,134.65,7.4265]
[1719051293488,33.9339,134.7,134.64,7.4269]
[1719051293689,6.51,134.69,134.64,7.4269]
[1719051295489,13.9345,134.69,134.64,7.4269]
[1719051297909,20.0,134.7,134.65,7.4264]
[1719051298207,33.9339,134.7,134.63,6.51]
[1719051300011,33.9339,134.7,134.65,7.4265]
[1719051302900,6.51,134.69,134.65,7.4265]
[1719051303414,20.0,134.7,134.66,13.9359]
[1719051303718,29.1023,134.71,134.67,6.51]
[1719051305207,29.1023,134.71,134.66,13.9359]
[1719051305409,7.4239,134.7,134.65,7.4264]
[1719051305605,35.6125,134.71,134.65,13.9364]
[1719051305809,35.6125,134.71,134.66,7.4259]
[1719051306893,28.1889,134.71,134.66,7.4259]
[1719051307316,21.6789,134.71,134.66,6.51]
[1719051307516,21.6789,134.71,134.67,6.51]
[1719051307694,21.6789,134.71,134.66,6.51]
[1719051307895,21.6789,134.71,134.68,7.4247]
[1719051308195,15.3972,134.74,134.67,6.51]
[1719051308396,26.51,134.73,134.68,6.51]
[1719051308597,20.0,134.73,134.68,6.51]
[1719051308785,20.0,134.73,134.69,7.424]
[1719051309515,20.0,134.73,134.69,13.934]
[1719051313016,20.0,134.73,134.69,7.424]
[1719051313203,26.51,134.73,134.69,7.424]
[1719051313594,6.51,134.72,134.66,7.4259]
[1719051313794,13.9331,134.72,134.66,6.51]
[1719051314013,13.9331,134.72,134.66,13.9357]
[1719051314397,13.9331,134.72,134.67,7.4255]
[1719051315114,7.4231,134.72,134.67,7.4255]
[1719051317304,6.51,134.7,134.66,7.4259]
[1719051317506,6.51,134.69,134.66,7.4259]
[1719051319020,6.51,134.69,134.64,7.4267]
[1719051319318,6.51,134.69,134.65,7.4264]
[1719051320817,6.51,134.69,134.63,6.51]
[1719051321123,16.4696,134.7,134.67,7.4251]
[1719051321504,16.4696,134.7,134.68,7.4246]
[1719051321707,16.4696,134.7,134.67,13.9353]
[1719051322621,36.4696,134.73,134.65,18.5662]
[1719051322821,42.9796,134.73,134.68,13.9345]
[1719051323325,42.9796,134.73,134.68,7.4245]
[1719051323698,50.402,134.73,134.68,7.4245]
[1719051324302,7.4229,134.72,134.67,6.51]
[1719051324505,42.9796,134.73,134.65,7.4261]
[1719051324506,6.51,134.7,134.65,7.4261]
[1719051324827,6.51,134.69,134.65,7.4261]
[1719051326215,6.51,134.69,134.66,7.4259]
[1719051326418,6.51,134.7,134.66,7.4259]
[1719051327127,7.4235,134.71,134.66,7.4259]
[1719051327424,26.51,134.7,134.66,7.4259]
[1719051329211,20.0,134.7,134.66,7.4259]
[1719051329412,26.51,134.7,134.66,7.4259]
[1719051330514,6.51,134.69,134.62,35.0632]
[1719051330829,6.51,134.69,134.63,6.51]
[1719051331626,6.51,134.69,134.65,7.4262]
[1719051333628,6.51,134.68,134.64,7.427]
[1719051334516,6.51,134.68,134.65,7.4265]
[1719051334707,6.51,134.68,134.64,7.427]
[1719051334907,6.51,134.68,134.65,7.4266]
[1719051335437,6.51,134.69,134.65,7.4266]
[1719051336649,26.3116,134.7,134.66,7.4261]
[1719051337014,32.8216,134.7,134.66,7.4261]
[1719051337730,26.3116,134.7,134.66,7.4261]
[1719051338029,32.8216,134.7,134.66,7.4261]
[1719051338504,26.3116,134.7,134.66,7.4261]
[1719051338708,32.8216,134.7,134.66,7.4261]
[1719051339620,26.3116,134.7,134.66,7.4261]
[1719051340623,26.3116,134.7,134.65,13.9364]
[1719051342129,33.7356,134.7,134.65,13.9364]
[1719051342535,26.3116,134.7,134.65,7.4264]
[1719051342717,33.7356,134.7,134.65,13.9364]
[1719051343114,33.7356,134.7,134.65,6.51]
[1719051343310,7.4246,134.69,134.62,16.4937]
[1719051343536,6.51,134.69,134.63,7.4275]
[1719051343736,6.51,134.69,134.63,13.9375]
[1719051344520,6.51,134.69,134.63,7.4275]
[1719051344733,13.935,134.68,134.63,13.9375]
[1719051345638,6.51,134.68,134.63,13.9375]
[1719051346438,6.51,134.68,134.64,7.427]
[1719051349043,33.7357,134.7,134.64,7.427]
[1719051349433,6.51,134.69,134.64,7.427]
[1719051352231,33.7357,134.7,134.64,7.427]
[1719051352439,32.8216,134.7,134.65,7.4265]
[1719051353537,26.51,134.7,134.65,7.4265]
[1719051354035,33.9339,134.7,134.65,7.4265]
[1719051354436,33.9339,134.7,134.64,13.937]
[1719051355656,6.51,134.69,134.64,7.427]
[1719051357656,27.4239,134.7,134.64,7.427]
[1719051357953,33.9339,134.7,134.64,13.937]
[1719051358152,33.9339,134.7,134.65,7.4266]
[1719051358357,6.51,134.69,134.65,7.4266]
[1719051358854,27.4239,134.7,134.65,7.4266]
[1719051359028,6.51,134.69,134.65,7.4266]
[1719051359226,6.51,134.69,134.63,6.51]
[1719051360740,6.51,134.69,134.65,7.4266]
[1719051362255,33.9339,134.7,134.65,7.4266]
[1719051362954,20.0,134.7,134.66,7.426]
[1719051363132,13.9328,134.72,134.66,6.51]
[1719051363542,30.3174,134.73,134.67,7.4253]
[1719051363743,26.51,134.72,134.67,7.4253]
[1719051363943,26.51,134.72,134.66,7.4259]
[1719051363944,7.4233,134.71,134.66,7.4259]
[1719051364142,13.9333,134.71,134.65,13.9365]
[1719051364657,13.9333,134.71,134.66,7.4259]
[1719051365049,6.51,134.71,134.66,7.4259]
[1719051365261,6.51,134.71,134.66,7.4261]
[1719051365552,6.51,134.7,134.66,7.4261]
[1719051368151,6.51,134.7,134.63,18.568]
[1719051368152,6.51,134.69,134.62,16.4937]
[1719051368351,6.51,134.68,134.64,7.4269]
[1719051369243,6.51,134.68,134.65,7.4265]
[1719051369962,6.51,134.68,134.64,7.427]
[1719051370132,6.51,134.68,134.65,7.4266]
[1719051370746,6.51,134.68,134.64,7.4271]
[1719051370939,6.51,134.67,134.64,7.4271]
[1719051374865,6.51,134.68,134.64,7.4271]
[1719051375164,6.51,134.67,134.64,7.4271]
[1719051377846,6.51,134.67,134.63,7.4275]
[1719051378865,20.0,134.72,134.65,7.4266]
[1719051379168,6.51,134.69,134.65,7.4266]
[1719051379366,26.51,134.68,134.62,16.4937]
[1719051379559,20.0,134.68,134.64,7.4268]
[1719051381069,20.0,134.68,134.63,13.9375]
[1719051381257,20.0,134.68,134.64,7.427]
[1719051384475,20.0,134.68,134.63,13.9375]
[1719051386275,20.0,134.68,134.63,7.4275]
[1719051386578,33.935,134.68,134.63,7.4275]
[1719051387983,48.4189,134.68,134.58,34.158]
[1719051388155,13.9363,134.66,134.6,7.4291]
[1719051388355,6.51,134.65,134.6,7.4291]
[1719051389367,6.51,134.65,134.61,7.4287]
[1719051389781,6.51,134.65,134.6,7.4293]
[1719051390260,6.51,134.64,134.6,7.4293]
[1719051391757,6.51,134.63,134.58,7.4301]
[1719051392073,6.51,134.62,134.58,7.4301]
[1719051392980,6.51,134.62,134.57,7.4308]
[1719051393186,6.51,134.6,134.56,7.4312]
[1719051393485,6.51,134.6,134.54,6.51]
[1719051393775,6.51,134.59,134.56,7.4315]
[1719051394980,6.51,134.6,134.57,7.431]
[1719051395680,6.51,134.61,134.57,7.431]
[1719051395857,20.0,134.6,134.57,7.431]
[1719051396918,20.0,134.6,134.56,7.4314]
[1719051397063,26.51,134.6,134.55,7.432]
[1719051402166,26.51,134.6,134.56,7.4315]
[1719051404794,43.1711,134.6,134.54,7.4324]
[1719051404974,6.51,134.58,134.54,7.4324]
[1719051405697,35.7415,134.6,134.56,7.4316]
[1719051406000,6.51,134.59,134.56,7.4316]
[1719051406168,35.7415,134.6,134.56,7.4316]
[1719051406493,6.51,134.59,134.56,7.4316]
[1719051407381,6.51,134.59,134.55,7.4319]
[1719051411011,6.51,134.59,134.54,13.9424]
[1719051418512,20.0,134.6,134.56,6.51]
[1719051418712,26.51,134.62,134.57,13.9407]
[1719051419014,28.5817,134.63,134.58,7.4304]
[1719051419393,36.0094,134.63,134.58,7.4304]
[1719051419592,36.0094,134.63,134.57,13.9408]
[1719051420000,29.4994,134.63,134.57,13.9408]
[1719051420199,36.0094,134.63,134.57,13.9408]
[1719051421518,15.7196,134.63,134.58,7.4304]
[1719051421692,13.7241,134.66,134.59,6.51]
[1719051421896,33.937,134.65,134.59,13.9397]
[1719051422614,33.937,134.65,134.59,6.51]
[1719051422615,13.9372,134.64,134.59,6.51]
[1719051423220,7.4272,134.64,134.59,13.9398]
[1719051423412,13.9372,134.64,134.59,13.9398]
[1719051423611,13.9372,134.64,134.59,7.4298]
[1719051423805,7.4278,134.63,134.58,7.4303]
[1719051423998,7.4278,134.63,134.58,13.9403]
[1719051424407,20.0,134.65,134.57,7.4308]
[1719051424408,13.9383,134.62,134.57,7.4308]
[1719051424602,6.51,134.61,134.57,7.4308]
[1719051426957,6.51,134.61,134.58,7.4303]
[1719051427215,6.51,134.62,134.58,7.4303]
[1719051427515,27.4268,134.65,134.59,7.4297]
[1719051427699,6.51,134.64,134.58,6.51]
[1719051427898,20.0,134.63,134.58,6.51]
[1719051428099,20.0,134.63,134.59,7.4298]
[1719051428513,20.0,134.63,134.6,7.4294]
[1719051428818,6.51,134.65,134.6,7.4291]
[1719051430321,21.1503,134.66,134.6,13.9391]
[1719051430522,26.51,134.65,134.6,13.9391]
[1719051430930,20.0,134.65,134.6,13.9391]
[1719051431420,29.6553,134.67,134.61,13.9388]
[1719051431635,26.51,134.66,134.61,7.4288]
[1719051431798,26.51,134.66,134.61,13.9388]
[1719051433609,26.51,134.66,134.61,7.4288]
[1719051434320,33.9361,134.66,134.61,7.4288]
[1719051434622,26.51,134.66,134.61,7.4288]
[1719051435328,26.51,134.66,134.6,6.51]
[1719051435329,20.0,134.66,134.63,7.4275]
[1719051435540,20.0,134.66,134.62,13.938]
[1719051435709,20.0,134.66,134.62,7.428]
[1719051437615,26.51,134.67,134.62,7.428]
[1719051441217,33.9355,134.67,134.62,7.428]
[1719051444625,33.9355,134.67,134.62,13.938]
[1719051446639,15.825,134.71,134.64,7.427]
[1719051446939,7.4235,134.71,134.65,14.1066]
[1719051447146,13.9335,134.71,134.66,13.936]
[1719051447354,13.9329,134.72,134.66,13.936]
[1719051447841,7.4233,134.71,134.66,13.936]
[1719051448930,7.4239,134.7,134.65,13.6647]
[1719051449248,13.9339,134.7,134.65,13.6647]
[1719051449629,6.51,134.69,134.65,13.6647]
[1719051450842,6.51,134.69,134.66,7.426]
[1719051451024,6.51,134.7,134.66,7.426]
[1719051452646,6.51,134.7,134.67,7.4254]
[1719051452853,6.51,134.71,134.67,7.4254]
[1719051454627,7.4224,134.73,134.67,7.4254]
[1719051454833,6.51,134.71,134.67,7.4254]
[1719051460637,20.0,134.72,134.68,7.4247]
[1719051461048,26.51,134.73,134.68,7.4247]
[1719051464739,6.51,134.72,134.68,7.4247]
[1719051468764,6.51,134.72,134.69,7.4243]
[1719051474860,7.446,134.78,134.71,7.4233]
[1719051475176,6.51,134.77,134.74,7.4211]
[1719051475541,6.51,134.77,134.73,7.422]
[1719051475957,6.51,134.77,134.74,7.4216]
[1719051476351,6.51,134.76,134.74,7.4216]
[1719051476765,6.51,134.76,134.73,7.422]
[1719051476958,7.4203,134.77,134.71,7.4231]
[1719051477147,6.51,134.74,134.71,7.4231]
[1719051478666,6.51,134.74,134.72,7.4225]
[1719051479748,6.51,134.75,134.72,7.4225]
[1719051479949,16.0831,134.81,134.77,7.42]
[1719051480143,6.51,134.78,134.76,7.4205]
[1719051480758,6.51,134.79,134.76,7.4205]
[1719051481671,16.0831,134.81,134.74,18.5535]
[1719051481850,6.298,134.84,134.75,6.51]
[1719051482051,6.51,134.81,134.78,7.4192]
[1719051484058,6.51,134.81,134.77,7.4198]
[1719051484255,7.4168,134.83,134.77,7.4198]
[1719051484483,6.51,134.8,134.77,7.4198]
[1719051485673,20.0,134.82,134.77,7.4198]
[1719051485866,6.51,134.8,134.77,7.4198]
[1719051486681,6.51,134.8,134.78,7.4194]
[1719051487753,6.51,134.8,134.77,7.4198]
[1719051488777,20.0,134.82,134.78,7.4194]
[1719051489083,6.51,134.8,134.78,7.4194]
[1719051492181,20.0,134.82,134.78,7.4194]
[1719051492479,6.51,134.8,134.78,7.4194]
[1719051494286,6.51,134.79,134.76,7.4202]
[1719051494520,6.51,134.78,134.76,7.4202]
[1719051495009,6.51,134.77,134.76,7.4202]
[1719051495182,6.51,134.77,134.74,23.9494]